[Event "*** Titled Tuesday Blitz"]
[Site "Chess.com"]
[Date "2020.02.04"]
[Round "7"]
[White "JozefKneht"]
[Black "Schachmalanders"]
[Result "1-0"]
[WhiteElo "2433"]
[BlackElo "2261"]
[TimeControl "180+2"]
[EndTime "14:32:04 PST"]
[Termination "JozefKneht won on time"]

1. d4 {[%clk 0:03:01.9]} 1... d5 {[%clk 0:02:53.7]} 2. Bf4 {[%clk 0:03:02.8]}
2... g6 {[%clk 0:02:53.7]} 3. e3 {[%clk 0:03:04]} 3... Bg7 {[%clk 0:02:54.5]} 4.
Nf3 {[%clk 0:03:05.6]} 4... Nf6 {[%clk 0:02:54.7]} 5. Be2 {[%clk 0:03:06.9]}
5... O-O {[%clk 0:02:55.8]} 6. O-O {[%clk 0:03:06.5]} 6... b6 {[%clk 0:02:55.4]}
7. c3 {[%clk 0:03:07.9]} 7... Bb7 {[%clk 0:02:56.3]} 8. a4 {[%clk 0:03:09.5]}
8... a5 {[%clk 0:02:56.4]} 9. Nbd2 {[%clk 0:03:10.9]} 9... Nbd7 {[%clk
0:02:57.6]} 10. Qb3 {[%clk 0:03:08.3]} 10... Ne4 {[%clk 0:02:56.9]} 11. Nxe4
{[%clk 0:03:08.8]} 11... dxe4 {[%clk 0:02:57.7]} 12. Ne1 {[%clk 0:02:52.5]}
12... e6 {[%clk 0:02:55.9]} 13. Nc2 {[%clk 0:02:49.2]} 13... e5 {[%clk
0:02:50.4]} 14. Bg3 {[%clk 0:02:33.7]} 14... Qe7 {[%clk 0:02:43.4]} 15. Na3
{[%clk 0:02:29.9]} 15... Rac8 {[%clk 0:02:38.4]} 16. Rad1 {[%clk 0:02:26.8]}
16... exd4 {[%clk 0:02:34.5]} 17. cxd4 {[%clk 0:02:25.1]} 17... Nf6 {[%clk
0:02:35.6]} 18. Nb5 {[%clk 0:02:23.4]} 18... Nd5 {[%clk 0:02:36.5]} 19. Rc1
{[%clk 0:02:17.9]} 19... c6 {[%clk 0:02:35.1]} 20. Na7 {[%clk 0:02:05.5]} 20...
Nb4 {[%clk 0:02:23.7]} 21. Nxc8 {[%clk 0:02:02.9]} 21... Rxc8 {[%clk 0:02:24.2]}
22. Bc4 {[%clk 0:01:47.9]} 22... Re8 {[%clk 0:02:19.9]} 23. Rfd1 {[%clk
0:01:33.1]} 23... Bc8 {[%clk 0:02:19.2]} 24. Be2 {[%clk 0:01:26.7]} 24... Be6
{[%clk 0:02:18.3]} 25. Bc4 {[%clk 0:01:24.7]} 25... Bg4 {[%clk 0:02:07.5]} 26.
Rd2 {[%clk 0:01:22.9]} 26... h5 {[%clk 0:02:01.1]} 27. h3 {[%clk 0:01:23.9]}
27... Bf5 {[%clk 0:02:01.9]} 28. Be2 {[%clk 0:01:24.9]} 28... Be6 {[%clk
0:02:02.3]} 29. Qd1 {[%clk 0:01:24.8]} 29... Bd5 {[%clk 0:02:00.3]} 30. Bc4
{[%clk 0:01:25.7]} 30... Qe6 {[%clk 0:01:56.4]} 31. Bxd5 {[%clk 0:01:26.5]}
31... Qxd5 {[%clk 0:01:58.3]} 32. Rc3 {[%clk 0:01:08.7]} 32... Bh6 {[%clk
0:01:49.5]} 33. Bc7 {[%clk 0:00:58.1]} 33... Qd7 {[%clk 0:01:02.7]} 34. Bxb6
{[%clk 0:00:57]} 34... Nd5 {[%clk 0:01:03.9]} 35. Rb3 {[%clk 0:00:38.9]} 1-0

[Event "*** Titled Tuesday Blitz"]
[Site "Chess.com"]
[Date "2020.02.04"]
[Round "7"]
[White "dmosesov"]
[Black "kacprekt"]
[Result "1/2-1/2"]
[WhiteElo "2586"]
[BlackElo "2417"]
[TimeControl "180+2"]
[EndTime "14:32:17 PST"]
[Termination "Game drawn - insufficient material"]

1. d4 {[%clk 0:03:01.8]} 1... Nf6 {[%clk 0:02:57]} 2. c4 {[%clk 0:03:02.8]} 2...
g6 {[%clk 0:02:56]} 3. Nc3 {[%clk 0:03:03.9]} 3... d5 {[%clk 0:02:56.8]} 4. Bf4
{[%clk 0:03:04.2]} 4... Bg7 {[%clk 0:02:49.9]} 5. e3 {[%clk 0:03:04.1]} 5... O-O
{[%clk 0:02:50.3]} 6. Rc1 {[%clk 0:03:03.9]} 6... Be6 {[%clk 0:02:22.1]} 7. Qb3
{[%clk 0:03:04.1]} 7... Nc6 {[%clk 0:02:15.2]} 8. Qxb7 {[%clk 0:03:01.8]} 8...
Na5 {[%clk 0:02:11.4]} 9. Qxc7 {[%clk 0:03:00.4]} 9... Nxc4 {[%clk 0:02:12.3]}
10. b3 {[%clk 0:02:55]} 10... Nb6 {[%clk 0:01:52.4]} 11. Qxd8 {[%clk 0:02:52.5]}
11... Rfxd8 {[%clk 0:01:51.5]} 12. Bd3 {[%clk 0:02:53.7]} 12... Nh5 {[%clk
0:01:47.4]} 13. Nge2 {[%clk 0:02:54]} 13... a5 {[%clk 0:01:43.5]} 14. a4 {[%clk
0:02:49.8]} 14... Nxf4 {[%clk 0:01:43.2]} 15. Nxf4 {[%clk 0:02:39.6]} 15... Bg4
{[%clk 0:01:32.7]} 16. h3 {[%clk 0:02:38]} 16... Bc8 {[%clk 0:01:16.6]} 17. O-O
{[%clk 0:02:33.6]} 17... Bb7 {[%clk 0:01:17.1]} 18. Nb5 {[%clk 0:02:30]} 18...
e5 {[%clk 0:01:14.9]} 19. dxe5 {[%clk 0:02:30.2]} 19... Bxe5 {[%clk 0:01:16.8]}
20. Ne2 {[%clk 0:02:30.1]} 20... Kf8 {[%clk 0:00:51.1]} 21. f4 {[%clk
0:02:28.5]} 21... Bb2 {[%clk 0:00:47.2]} 22. Rc7 {[%clk 0:02:26.3]} 22... Ba6
{[%clk 0:00:43.1]} 23. f5 {[%clk 0:02:25.2]} 23... g5 {[%clk 0:00:41.5]} 24. f6
{[%clk 0:02:23.7]} 24... Bxb5 {[%clk 0:00:41.9]} 25. axb5 {[%clk 0:02:16.4]}
25... Rd6 {[%clk 0:00:43.1]} 26. Rc6 {[%clk 0:02:14.7]} 26... Rad8 {[%clk
0:00:42.1]} 27. Bxh7 {[%clk 0:02:13.3]} 27... Rxc6 {[%clk 0:00:24.1]} 28. bxc6
{[%clk 0:02:15.2]} 28... Rc8 {[%clk 0:00:25.5]} 29. Nd4 {[%clk 0:02:07.6]} 29...
Bxd4 {[%clk 0:00:26.4]} 30. exd4 {[%clk 0:02:09.5]} 30... Rxc6 {[%clk 0:00:28]}
31. g4 {[%clk 0:01:58.9]} 31... a4 {[%clk 0:00:27]} 32. bxa4 {[%clk 0:01:59]}
32... Nxa4 {[%clk 0:00:28.9]} 33. h4 {[%clk 0:02:00]} 33... gxh4 {[%clk
0:00:29.3]} 34. g5 {[%clk 0:02:01.1]} 34... Nc3 {[%clk 0:00:28.3]} 35. Ra1
{[%clk 0:01:59.7]} 35... Rc8 {[%clk 0:00:25.3]} 36. Kh2 {[%clk 0:02:00.5]} 36...
Ne2 {[%clk 0:00:25.8]} 37. Ra4 {[%clk 0:02:00.1]} 37... Nf4 {[%clk 0:00:25.3]}
38. Bf5 {[%clk 0:02:00]} 38... Rb8 {[%clk 0:00:22.1]} 39. Ra2 {[%clk 0:01:55.9]}
39... Re8 {[%clk 0:00:16.7]} 40. Rf2 {[%clk 0:01:53.1]} 40... Re2 {[%clk
0:00:17.1]} 41. Rxe2 {[%clk 0:01:43.3]} 41... Nxe2 {[%clk 0:00:18.1]} 42. Kh3
{[%clk 0:01:44.9]} 42... Nxd4 {[%clk 0:00:19.2]} 43. Bd3 {[%clk 0:01:46.4]}
43... Nf3 {[%clk 0:00:19.3]} 44. g6 {[%clk 0:01:44.1]} 44... fxg6 {[%clk
0:00:17.4]} 45. Bxg6 {[%clk 0:01:45.9]} 45... d4 {[%clk 0:00:17.1]} 46. Bh5
{[%clk 0:01:46]} 46... Ne5 {[%clk 0:00:09.5]} 47. Kxh4 {[%clk 0:01:45.9]} 47...
Nd7 {[%clk 0:00:11]} 48. f7 {[%clk 0:01:44.9]} 48... Ne5 {[%clk 0:00:12]} 49.
Kg3 {[%clk 0:01:45.9]} 49... Nxf7 {[%clk 0:00:13.1]} 50. Bxf7 {[%clk 0:01:46.1]}
50... Kxf7 {[%clk 0:00:14.1]} 51. Kf3 {[%clk 0:01:47.8]} 51... Ke6 {[%clk
0:00:15.4]} 52. Ke4 {[%clk 0:01:48.7]} 52... d3 {[%clk 0:00:17.3]} 53. Kxd3
{[%clk 0:01:49]} 1/2-1/2

[Event "*** Titled Tuesday Blitz"]
[Site "Chess.com"]
[Date "2020.02.04"]
[Round "7"]
[White "Jahonas"]
[Black "Snegokhod"]
[Result "0-1"]
[WhiteElo "2425"]
[BlackElo "2635"]
[TimeControl "180+2"]
[EndTime "14:32:26 PST"]
[Termination "Snegokhod won by resignation"]

1. e4 {[%clk 0:03:01.9]} 1... c5 {[%clk 0:03:00.2]} 2. Nf3 {[%clk 0:03:01.9]}
2... d6 {[%clk 0:03:00.7]} 3. d4 {[%clk 0:03:02.5]} 3... cxd4 {[%clk 0:03:01.3]}
4. Qxd4 {[%clk 0:03:03.7]} 4... a6 {[%clk 0:02:57.5]} 5. Nc3 {[%clk 0:03:03.5]}
5... Nc6 {[%clk 0:02:56.7]} 6. Qd1 {[%clk 0:03:04.3]} 6... g6 {[%clk 0:02:51]}
7. Bd3 {[%clk 0:03:01.3]} 7... Bg7 {[%clk 0:02:51.8]} 8. O-O {[%clk 0:03:00.9]}
8... Nf6 {[%clk 0:02:52.5]} 9. Nd5 {[%clk 0:03:01.2]} 9... O-O {[%clk
0:02:47.5]} 10. c4 {[%clk 0:03:01.1]} 10... Nd7 {[%clk 0:02:40.1]} 11. Rb1
{[%clk 0:02:57.4]} 11... e6 {[%clk 0:02:39]} 12. Nf4 {[%clk 0:02:53.6]} 12... b6
{[%clk 0:02:35.8]} 13. Be3 {[%clk 0:02:52.9]} 13... Bb7 {[%clk 0:02:35.3]} 14.
a3 {[%clk 0:02:52.2]} 14... Rc8 {[%clk 0:02:28.4]} 15. Qe2 {[%clk 0:02:52.5]}
15... Qc7 {[%clk 0:02:26.1]} 16. Rbc1 {[%clk 0:02:52.2]} 16... Qb8 {[%clk
0:02:24.8]} 17. Rfd1 {[%clk 0:02:51.2]} 17... Rfe8 {[%clk 0:02:20]} 18. h4
{[%clk 0:02:50.9]} 18... Nc5 {[%clk 0:02:11.7]} 19. Bc2 {[%clk 0:02:40.2]} 19...
Ne5 {[%clk 0:02:04]} 20. Nxe5 {[%clk 0:02:34.8]} 20... dxe5 {[%clk 0:02:02.7]}
21. Bxc5 {[%clk 0:02:34.1]} 21... Rxc5 {[%clk 0:01:45.7]} 22. b4 {[%clk
0:02:26.6]} 22... Rcc8 {[%clk 0:01:36.9]} 23. Nh3 {[%clk 0:02:15.4]} 23... Red8
{[%clk 0:01:36]} 24. Rxd8+ {[%clk 0:02:11.9]} 24... Rxd8 {[%clk 0:01:36.3]} 25.
Rd1 {[%clk 0:02:12]} 25... Rd4 {[%clk 0:01:37]} 26. f3 {[%clk 0:01:53]} 26...
Qc7 {[%clk 0:01:32.1]} 27. Bb3 {[%clk 0:01:49.2]} 27... Qe7 {[%clk 0:01:16.3]}
28. g3 {[%clk 0:01:44.4]} 28... a5 {[%clk 0:01:11.4]} 29. Rxd4 {[%clk
0:01:29.9]} 29... exd4 {[%clk 0:01:11.5]} 30. Qd2 {[%clk 0:01:28.4]} 30... axb4
{[%clk 0:01:01.5]} 31. Qxb4 {[%clk 0:01:22.3]} 31... Qc7 {[%clk 0:00:53.9]} 32.
Kg2 {[%clk 0:01:18.1]} 32... Bf8 {[%clk 0:00:54.1]} 33. Qd2 {[%clk 0:01:17.3]}
33... e5 {[%clk 0:00:47.7]} 34. a4 {[%clk 0:01:16.9]} 34... Qc5 {[%clk
0:00:41.7]} 35. Nf2 {[%clk 0:01:15.5]} 35... Qb4 {[%clk 0:00:37.6]} 36. Qxb4
{[%clk 0:01:16]} 36... Bxb4 {[%clk 0:00:38.6]} 37. Nd3 {[%clk 0:01:16.8]} 37...
Bd6 {[%clk 0:00:39.3]} 38. Kf2 {[%clk 0:00:57.6]} 38... Kg7 {[%clk 0:00:39.5]}
39. Ke2 {[%clk 0:00:56.6]} 39... f5 {[%clk 0:00:39.9]} 40. exf5 {[%clk
0:00:56.2]} 40... gxf5 {[%clk 0:00:40.7]} 41. Nf2 {[%clk 0:00:51.1]} 41... e4
{[%clk 0:00:39.2]} 42. fxe4 {[%clk 0:00:51.8]} 42... fxe4 {[%clk 0:00:40]} 43.
g4 {[%clk 0:00:48.4]} 43... d3+ {[%clk 0:00:38.4]} 44. Nxd3 {[%clk 0:00:45.5]}
44... exd3+ {[%clk 0:00:38.7]} 45. Kxd3 {[%clk 0:00:47.4]} 45... Bg3 {[%clk
0:00:29.9]} 46. h5 {[%clk 0:00:42.6]} 46... Bf3 {[%clk 0:00:29.4]} 0-1

[Event "*** Titled Tuesday Blitz"]
[Site "Chess.com"]
[Date "2020.02.04"]
[Round "7"]
[White "Chigorinetz"]
[Black "bsnsun"]
[Result "1-0"]
[WhiteElo "2571"]
[BlackElo "2411"]
[TimeControl "180+2"]
[EndTime "14:32:33 PST"]
[Termination "Chigorinetz won by resignation"]

1. e4 {[%clk 0:03:01.9]} 1... c5 {[%clk 0:02:51.8]} 2. Nc3 {[%clk 0:03:01.6]}
2... d6 {[%clk 0:02:52.1]} 3. Nf3 {[%clk 0:03:01.5]} 3... Nf6 {[%clk 0:02:50.2]}
4. e5 {[%clk 0:03:02.1]} 4... dxe5 {[%clk 0:02:51.1]} 5. Nxe5 {[%clk 0:03:03.5]}
5... g6 {[%clk 0:02:51.5]} 6. Bc4 {[%clk 0:03:02.7]} 6... e6 {[%clk 0:02:48.9]}
7. d3 {[%clk 0:03:02.2]} 7... Bg7 {[%clk 0:02:49.5]} 8. Be3 {[%clk 0:03:00]}
8... Qc7 {[%clk 0:02:48.3]} 9. Ng4 {[%clk 0:02:52.8]} 9... Nxg4 {[%clk
0:02:39.9]} 10. Qxg4 {[%clk 0:02:52.6]} 10... O-O {[%clk 0:02:40.1]} 11. Qg3
{[%clk 0:02:49.1]} 11... Qxg3 {[%clk 0:02:19.4]} 12. hxg3 {[%clk 0:02:49]} 12...
b6 {[%clk 0:02:12.3]} 13. a4 {[%clk 0:02:45.6]} 13... Nc6 {[%clk 0:02:13.1]} 14.
Kd2 {[%clk 0:02:34.5]} 14... Bb7 {[%clk 0:02:11.9]} 15. Ne4 {[%clk 0:02:26.4]}
15... Ne5 {[%clk 0:02:08]} 16. Nd6 {[%clk 0:02:18.6]} 16... Nxc4+ {[%clk
0:02:07.8]} 17. Nxc4 {[%clk 0:02:15.9]} 17... Bd5 {[%clk 0:02:09]} 18. f3 {[%clk
0:02:13.4]} 18... Bxc4 {[%clk 0:02:08]} 19. dxc4 {[%clk 0:02:13.3]} 19... Bxb2
{[%clk 0:02:09.4]} 20. Rab1 {[%clk 0:02:01.8]} 20... Rfd8+ {[%clk 0:02:09.9]}
21. Ke2 {[%clk 0:02:02.7]} 21... Bd4 {[%clk 0:02:10]} 22. Bg5 {[%clk 0:01:58.3]}
22... f6 {[%clk 0:02:10]} 23. Bd2 {[%clk 0:01:58.6]} 23... Rd7 {[%clk
0:02:05.5]} 24. a5 {[%clk 0:01:58.7]} 24... Rad8 {[%clk 0:01:51.7]} 25. axb6
{[%clk 0:01:56.8]} 25... axb6 {[%clk 0:01:52.1]} 26. Rxb6 {[%clk 0:01:56.9]}
26... Bf2 {[%clk 0:01:28.5]} 27. Bf4 {[%clk 0:01:52.9]} 27... e5 {[%clk
0:01:08]} 28. Kxf2 {[%clk 0:01:51.4]} 28... exf4 {[%clk 0:01:09.1]} 29. gxf4
{[%clk 0:01:51.5]} 29... Rd2+ {[%clk 0:01:09.9]} 30. Kg3 {[%clk 0:01:51.8]}
30... Rxc2 {[%clk 0:01:11.1]} 31. f5 {[%clk 0:01:35.7]} 31... g5 {[%clk
0:01:07.9]} 32. Rxf6 {[%clk 0:01:28.2]} 32... Rdd2 {[%clk 0:01:07.8]} 33. Rh2
{[%clk 0:01:25.6]} 33... Rxc4 {[%clk 0:01:05.9]} 34. Rh5 {[%clk 0:01:09.3]}
34... Kg7 {[%clk 0:00:59.8]} 35. Rc6 {[%clk 0:01:08.2]} 35... Rcc2 {[%clk
0:00:56.6]} 36. Rxg5+ {[%clk 0:01:08.1]} 36... Kf8 {[%clk 0:00:57.3]} 37. Kh3
{[%clk 0:01:08.2]} 37... c4 {[%clk 0:00:48.3]} 38. f6 {[%clk 0:01:07.9]} 38...
Rc1 {[%clk 0:00:16]} 39. Rg7 {[%clk 0:01:04.8]} 39... Rd8 {[%clk 0:00:17.5]} 40.
Kg3 {[%clk 0:00:56.7]} 40... c3 {[%clk 0:00:18.1]} 41. Rxh7 {[%clk 0:00:56.2]}
41... Kg8 {[%clk 0:00:19.5]} 42. Rg7+ {[%clk 0:00:55.4]} 42... Kf8 {[%clk
0:00:18.8]} 43. Rcc7 {[%clk 0:00:50.5]} 43... c2 {[%clk 0:00:19]} 44. Rh7 {[%clk
0:00:48.6]} 44... Rh1 {[%clk 0:00:08.6]} 45. Rxh1 {[%clk 0:00:46.6]} 1-0

[Event "*** Titled Tuesday Blitz"]
[Site "Chess.com"]
[Date "2020.02.04"]
[Round "7"]
[White "stoleriu"]
[Black "hansen"]
[Result "0-1"]
[WhiteElo "2503"]
[BlackElo "2866"]
[TimeControl "180+2"]
[EndTime "14:32:35 PST"]
[Termination "hansen won by resignation"]

1. e4 {[%clk 0:03:01.9]} 1... e5 {[%clk 0:03:00.6]} 2. Nf3 {[%clk 0:02:58.1]}
2... Nc6 {[%clk 0:03:01.4]} 3. Bb5 {[%clk 0:02:57.5]} 3... a6 {[%clk 0:03:00]}
4. Ba4 {[%clk 0:02:58.5]} 4... Nf6 {[%clk 0:02:56.9]} 5. d3 {[%clk 0:02:59.7]}
5... d6 {[%clk 0:02:55]} 6. c3 {[%clk 0:02:55.8]} 6... Bd7 {[%clk 0:02:50.9]} 7.
O-O {[%clk 0:02:52.1]} 7... g6 {[%clk 0:02:45]} 8. Re1 {[%clk 0:02:52.2]} 8...
Bg7 {[%clk 0:02:45.8]} 9. Bg5 {[%clk 0:02:45.7]} 9... h6 {[%clk 0:02:46.4]} 10.
Bxf6 {[%clk 0:02:44.2]} 10... Bxf6 {[%clk 0:02:46.7]} 11. Nbd2 {[%clk
0:02:46.1]} 11... Bg7 {[%clk 0:02:47.9]} 12. Nf1 {[%clk 0:02:42.6]} 12... O-O
{[%clk 0:02:38.2]} 13. Ne3 {[%clk 0:02:33.1]} 13... Kh7 {[%clk 0:02:37.1]} 14.
Nd5 {[%clk 0:02:15.4]} 14... b5 {[%clk 0:02:30]} 15. Bc2 {[%clk 0:02:11.5]}
15... Ne7 {[%clk 0:02:30.9]} 16. d4 {[%clk 0:01:51.1]} 16... Nxd5 {[%clk
0:02:07.8]} 17. exd5 {[%clk 0:01:50]} 17... Re8 {[%clk 0:01:57.1]} 18. Qd2
{[%clk 0:01:37.3]} 18... f5 {[%clk 0:01:57.5]} 19. dxe5 {[%clk 0:01:31]} 19...
dxe5 {[%clk 0:01:59.4]} 20. Rad1 {[%clk 0:01:26.6]} 20... Qf6 {[%clk 0:01:54.3]}
21. Qe3 {[%clk 0:01:02.9]} 21... Qd6 {[%clk 0:01:52.3]} 22. Nh4 {[%clk
0:00:52.6]} 22... e4 {[%clk 0:01:45.3]} 23. g3 {[%clk 0:00:53.3]} 23... b4
{[%clk 0:01:38.2]} 24. c4 {[%clk 0:00:36.1]} 24... Bxb2 {[%clk 0:01:33.7]} 25.
c5 {[%clk 0:00:36.5]} 25... Qf6 {[%clk 0:01:35.1]} 26. c6 {[%clk 0:00:28]} 26...
Bc8 {[%clk 0:01:34.6]} 27. f3 {[%clk 0:00:24.3]} 27... Bc3 {[%clk 0:01:26.2]}
28. Re2 {[%clk 0:00:24.8]} 28... a5 {[%clk 0:01:24.9]} 29. fxe4 {[%clk 0:00:22]}
29... Ba6 {[%clk 0:01:26.1]} 30. Rf2 {[%clk 0:00:21.1]} 30... Re7 {[%clk
0:00:20.9]} 31. Kh1 {[%clk 0:00:18.8]} 31... Rae8 {[%clk 0:00:20.7]} 32. Qf3
{[%clk 0:00:19.7]} 32... Kg7 {[%clk 0:00:20]} 33. exf5 {[%clk 0:00:14.7]} 33...
Be2 {[%clk 0:00:19.6]} 34. Rxe2 {[%clk 0:00:10.7]} 34... Rxe2 {[%clk 0:00:20.8]}
35. Nxg6 {[%clk 0:00:11.6]} 35... Rxc2 {[%clk 0:00:17.3]} 36. Qg4 {[%clk
0:00:10.8]} 36... Qg5 {[%clk 0:00:17.7]} 37. Qxg5 {[%clk 0:00:03.2]} 37... hxg5
{[%clk 0:00:18.6]} 38. d6 {[%clk 0:00:02.5]} 38... cxd6 {[%clk 0:00:16.5]} 0-1

[Event "*** Titled Tuesday Blitz"]
[Site "Chess.com"]
[Date "2020.02.04"]
[Round "7"]
[White "guillembaches"]
[Black "SerGo055"]
[Result "0-1"]
[WhiteElo "2389"]
[BlackElo "2553"]
[TimeControl "180+2"]
[EndTime "14:32:35 PST"]
[Termination "SerGo055 won by resignation"]

1. e4 {[%clk 0:03:01.9]} 1... d5 {[%clk 0:03:00.2]} 2. exd5 {[%clk 0:03:02.3]}
2... Qxd5 {[%clk 0:03:02.1]} 3. Nc3 {[%clk 0:03:03.1]} 3... Qd8 {[%clk
0:03:03.6]} 4. g3 {[%clk 0:02:59.9]} 4... Nf6 {[%clk 0:03:04.7]} 5. Bg2 {[%clk
0:03:00.9]} 5... g6 {[%clk 0:03:04.2]} 6. Nge2 {[%clk 0:02:59.6]} 6... Bg7
{[%clk 0:03:05.4]} 7. d3 {[%clk 0:03:00]} 7... O-O {[%clk 0:03:06.6]} 8. Bd2
{[%clk 0:03:01]} 8... Nc6 {[%clk 0:03:03.1]} 9. Qc1 {[%clk 0:03:01.8]} 9... Re8
{[%clk 0:03:03.1]} 10. Bh6 {[%clk 0:03:02.3]} 10... Bh8 {[%clk 0:03:03.6]} 11.
O-O {[%clk 0:03:03.1]} 11... Nd4 {[%clk 0:03:02.9]} 12. Nxd4 {[%clk 0:02:56.7]}
12... Qxd4 {[%clk 0:03:04.8]} 13. Qe3 {[%clk 0:02:51.1]} 13... Qxe3 {[%clk
0:03:03]} 14. Bxe3 {[%clk 0:02:47.7]} 14... c6 {[%clk 0:03:03.6]} 15. Rfe1
{[%clk 0:02:39.9]} 15... Be6 {[%clk 0:02:47.9]} 16. a4 {[%clk 0:02:34.9]} 16...
Nd5 {[%clk 0:02:27.9]} 17. Nxd5 {[%clk 0:02:28.1]} 17... Bxd5 {[%clk 0:02:27.6]}
18. Bxd5 {[%clk 0:02:04.5]} 18... cxd5 {[%clk 0:02:26.4]} 19. Ra3 {[%clk
0:02:01.6]} 19... d4 {[%clk 0:02:03]} 20. Bd2 {[%clk 0:01:54.4]} 20... Rac8
{[%clk 0:02:02.5]} 21. c4 {[%clk 0:01:51.4]} 21... dxc3 {[%clk 0:02:02.6]} 22.
bxc3 {[%clk 0:01:53.3]} 22... Red8 {[%clk 0:01:52]} 23. d4 {[%clk 0:01:52]}
23... e5 {[%clk 0:01:28.1]} 24. Be3 {[%clk 0:01:15.5]} 24... exd4 {[%clk
0:01:28.6]} 25. cxd4 {[%clk 0:01:17.4]} 25... Bxd4 {[%clk 0:01:29.8]} 26. Bxd4
{[%clk 0:01:14.1]} 26... Rxd4 {[%clk 0:01:31.7]} 27. Re7 {[%clk 0:01:15.1]}
27... Rb4 {[%clk 0:01:20.8]} 28. a5 {[%clk 0:01:16]} 28... a6 {[%clk 0:01:19]}
29. Rd3 {[%clk 0:01:14]} 29... Rb5 {[%clk 0:01:17.5]} 30. Rdd7 {[%clk
0:01:11.6]} 30... Rxa5 {[%clk 0:01:18.3]} 31. Rxf7 {[%clk 0:01:05.5]} 31... Rh5
{[%clk 0:00:50.3]} 32. Rxb7 {[%clk 0:00:58.6]} 32... Ra8 {[%clk 0:00:49.9]} 33.
Rg7+ {[%clk 0:00:37.9]} 33... Kh8 {[%clk 0:00:50.6]} 34. Ra7 {[%clk 0:00:30.8]}
34... Rxa7 {[%clk 0:00:51.2]} 35. Rxa7 {[%clk 0:00:32.7]} 35... a5 {[%clk
0:00:52.9]} 36. Kg2 {[%clk 0:00:33.7]} 36... Rb5 {[%clk 0:00:50.5]} 37. h4
{[%clk 0:00:34.4]} 37... Kg8 {[%clk 0:00:49.2]} 38. f4 {[%clk 0:00:32.3]} 38...
h5 {[%clk 0:00:48.6]} 39. Kf3 {[%clk 0:00:33.2]} 39... Rb3+ {[%clk 0:00:49.4]}
40. Kf2 {[%clk 0:00:32.7]} 40... Ra3 {[%clk 0:00:50.3]} 41. Kg2 {[%clk
0:00:27.9]} 41... a4 {[%clk 0:00:51.4]} 42. Kf2 {[%clk 0:00:29]} 42... Ra1
{[%clk 0:00:52.2]} 43. Kg2 {[%clk 0:00:30.1]} 43... a3 {[%clk 0:00:53.5]} 44.
Kf2 {[%clk 0:00:31.3]} 44... a2 {[%clk 0:00:54]} 45. Kg2 {[%clk 0:00:32.4]}
45... Kf8 {[%clk 0:00:55.6]} 46. Kf2 {[%clk 0:00:33.6]} 46... Rh1 {[%clk
0:00:55.9]} 0-1

[Event "*** Titled Tuesday Blitz"]
[Site "Chess.com"]
[Date "2020.02.04"]
[Round "7"]
[White "FredddieCroderg"]
[Black "Al_Shima"]
[Result "0-1"]
[WhiteElo "2084"]
[BlackElo "2425"]
[TimeControl "180+2"]
[EndTime "14:32:35 PST"]
[Termination "Al_Shima won by resignation"]

1. d4 {[%clk 0:03:01.9]} 1... b5 {[%clk 0:02:57.8]} 2. a4 {[%clk 0:02:57.2]}
2... b4 {[%clk 0:02:58.5]} 3. e4 {[%clk 0:02:57.7]} 3... Bb7 {[%clk 0:02:56.8]}
4. Bd3 {[%clk 0:02:58.9]} 4... Nf6 {[%clk 0:02:56.5]} 5. Nd2 {[%clk 0:02:56.5]}
5... e6 {[%clk 0:02:57]} 6. Qe2 {[%clk 0:02:57.7]} 6... c5 {[%clk 0:02:55.6]} 7.
Ngf3 {[%clk 0:02:51.4]} 7... Be7 {[%clk 0:02:54.7]} 8. O-O {[%clk 0:02:51.1]}
8... cxd4 {[%clk 0:02:55.3]} 9. Nxd4 {[%clk 0:02:51.2]} 9... Nc6 {[%clk
0:02:55.8]} 10. N4f3 {[%clk 0:02:46.7]} 10... Qc7 {[%clk 0:02:45.4]} 11. h3
{[%clk 0:02:41.6]} 11... h6 {[%clk 0:02:42.5]} 12. Nc4 {[%clk 0:02:40]} 12...
O-O {[%clk 0:02:28.7]} 13. e5 {[%clk 0:02:27.6]} 13... Nd5 {[%clk 0:02:26.5]}
14. Nh2 {[%clk 0:01:50.9]} 14... d6 {[%clk 0:01:53.8]} 15. exd6 {[%clk
0:01:44.8]} 15... Bxd6 {[%clk 0:01:54.3]} 16. Ng4 {[%clk 0:01:34.3]} 16... Nce7
{[%clk 0:01:47.5]} 17. Nxh6+ {[%clk 0:01:15.6]} 17... gxh6 {[%clk 0:01:47.9]}
18. Qg4+ {[%clk 0:01:13]} 18... Kh8 {[%clk 0:01:45.6]} 19. Nxd6 {[%clk
0:00:59.5]} 19... Qxd6 {[%clk 0:01:41.2]} 20. Bxh6 {[%clk 0:00:59.1]} 20... Qe5
{[%clk 0:01:24.2]} 21. Rae1 {[%clk 0:00:49.1]} 21... Qxb2 {[%clk 0:01:18.3]} 22.
Qh4 {[%clk 0:00:27.5]} 22... Kg8 {[%clk 0:01:17]} 23. Re4 {[%clk 0:00:22.6]}
23... f5 {[%clk 0:01:10.6]} 24. Rxe6 {[%clk 0:00:21.4]} 24... Rf6 {[%clk
0:00:57.2]} 25. Re2 {[%clk 0:00:14.4]} 25... Kf7 {[%clk 0:00:45.7]} 26. Bg5
{[%clk 0:00:14.9]} 26... Rg8 {[%clk 0:00:34.2]} 27. Bxf6 {[%clk 0:00:15.2]}
27... Qxf6 {[%clk 0:00:34.1]} 28. Qh5+ {[%clk 0:00:16]} 28... Kf8 {[%clk
0:00:31.1]} 29. Rxe7 {[%clk 0:00:16.3]} 29... Rxg2+ {[%clk 0:00:21.7]} 30. Kh1
{[%clk 0:00:13]} 30... Nxe7 {[%clk 0:00:21.6]} 31. f3 {[%clk 0:00:13.7]} 31...
Rg5 {[%clk 0:00:21.2]} 32. Qh7 {[%clk 0:00:11.6]} 32... Rg7 {[%clk 0:00:21.1]}
33. Qh5 {[%clk 0:00:12]} 33... Rg6 {[%clk 0:00:20.6]} 34. Kh2 {[%clk 0:00:10.2]}
34... Qe5+ {[%clk 0:00:20.2]} 35. Kh1 {[%clk 0:00:08.2]} 35... Qf6 {[%clk
0:00:21]} 36. Qh7 {[%clk 0:00:07.5]} 36... Rh6 {[%clk 0:00:20.8]} 0-1